bitfinex/quotes_ETHUSD_20220309
["timestamp","ask_amount","ask_price","bid_price","bid_amount"]
[1646825813822,16.83349,2746.0,2745.7,0.0206456]
[1646825813823,11.1,2745.8,2745.7,0.0206456]
[1646825814020,17.1,2745.7,2745.6,0.12861082]
[1646825814223,17.1,2745.7,2745.1,0.0687138]
[1646825814224,14.46696699,2745.6,2745.1,0.0687138]
[1646825814485,2.0,2745.5,2744.9,0.0568164]
[1646825814686,3.27437,2745.5,2744.9,0.12741936]
[1646825814885,0.89132006,2745.1,2744.9,0.12741936]
[1646825815089,0.5,2745.0,2744.9,0.12741936]
[1646825815486,1.2512,2745.0,2744.9,0.12741936]
[1646825818228,1.4333,2745.0,2744.9,0.12741936]
[1646825819825,1.4333,2745.0,2744.9,0.1401108]
[1646825820826,12.3512,2745.0,2744.9,0.1401108]
[1646825821025,5.2333,2745.0,2744.9,0.1401108]
[1646825821234,2.7333,2745.0,2744.9,0.1401108]
[1646825821626,5.2333,2745.0,2744.9,0.1401108]
[1646825821826,6.2333,2745.0,2744.9,0.1401108]
[1646825822072,6.0,2744.8,2744.5,0.04874048]
[1646825822273,6.0,2744.6,2744.5,0.03881872]
[1646825822469,6.0,2744.6,2744.3,0.05184824]
[1646825822470,11.1,2744.4,2744.3,0.08059988]
[1646825822667,4.5,2744.3,2744.0,0.0501]
[1646825822872,16.6,2744.3,2744.0,0.0501]
[1646825823068,1.82408,2744.1,2743.6,0.14029608]
[1646825823267,1.04891541,2743.7,2743.6,0.20566888]
[1646825823667,1.34891541,2743.7,2743.6,0.20566888]
[1646825823970,2.95874741,2743.7,2743.6,0.20566888]
[1646825824468,2.939,2743.7,2743.6,0.20566888]
[1646825824674,5.439,2743.7,2743.6,0.20566888]
[1646825824872,2.939,2743.7,2743.6,0.20566888]
[1646825826119,1.939,2743.7,2743.6,0.20566888]
[1646825826318,3.85092,2743.7,2743.6,0.20566888]
[1646825826518,2.85092,2743.7,2743.6,0.20566888]
[1646825826722,2.939,2743.7,2743.6,0.20566888]
[1646825826923,1.639,2743.7,2743.6,0.20566888]
[1646825827123,0.029168,2744.4,2743.7,1.65705334]
[1646825827326,3.529168,2744.4,2743.7,1.65705334]
[1646825827725,0.1822,2744.3,2743.7,1.65705334]
[1646825827922,0.1822,2744.3,2743.9,0.00410985]
[1646825828127,0.029168,2744.4,2743.9,0.00410985]
[1646825828324,3.529168,2744.4,2743.9,0.00410985]
[1646825828524,0.029168,2744.4,2743.9,0.00410985]
[1646825828923,0.029168,2744.4,2743.9,0.0653728]
[1646825829125,0.91162,2744.3,2743.9,0.0653728]
[1646825829324,0.91162,2744.3,2744.0,0.00410974]
[1646825829968,0.5,2744.1,2744.0,0.06948254]
[1646825830168,0.5,2744.1,2744.0,0.0653728]
[1646825830368,0.5,2744.1,2744.0,0.06948254]
[1646825830773,0.029168,2744.4,2744.0,0.06948254]
[1646825831369,0.91172,2744.3,2744.0,0.0653728]
[1646825831570,0.81172,2744.3,2744.0,0.0653728]
[1646825831770,0.81172,2744.3,2744.1,0.00398639]
[1646825831971,1.72334,2744.3,2744.1,0.06935919]
[1646825832172,0.5,2744.2,2744.1,0.06935919]
[1646825832571,0.5,2744.2,2744.1,0.0653728]
[1646825832770,4.0,2744.2,2744.1,0.0653728]
[1646825832973,4.3,2744.2,2744.1,0.0653728]
[1646825833254,6.0,2744.1,2744.0,0.00398644]
[1646825833448,20.6,2744.1,2744.0,0.036245]
[1646825833645,15.6,2744.1,2744.0,0.03225856]
[1646825834044,20.045,2744.1,2744.0,0.03225856]
[1646825834644,20.345,2744.1,2744.0,0.03225856]
[1646825835246,16.845,2744.1,2744.0,0.03225856]
[1646825835446,5.745,2744.1,2744.0,0.03225856]
[1646825835644,16.845,2744.1,2744.0,0.03225856]
[1646825836447,5.745,2744.1,2744.0,0.03225856]
[1646825837071,9.245,2744.1,2744.0,0.03225856]
[1646825837275,9.545,2744.1,2744.0,0.03225856]
[1646825837473,20.645,2744.1,2744.0,0.03225856]
[1646825837873,20.79038486,2744.1,2744.0,0.03225856]
[1646825838473,6.8783,2744.1,2744.0,0.03225856]
[1646825838873,6.4333,2744.1,2744.0,0.03225856]
[1646825839476,5.3,2744.1,2744.0,0.03225856]
[1646825840076,5.0,2744.1,2744.0,0.03225856]
[1646825841426,6.2118,2744.1,2744.0,0.03225856]
[1646825842025,6.5118,2744.1,2744.0,0.03225856]
[1646825842224,6.2118,2744.1,2744.0,0.03225856]
[1646825842825,4.0,2744.1,2744.0,0.03225856]
[1646825843226,0.5,2744.1,2744.0,0.03225856]
[1646825843426,0.940758,2744.4,2744.1,4.5]
[1646825843427,0.029168,2744.4,2744.1,4.5]
[1646825843632,4.5284,2745.0,2744.2,3.5]
[1646825843633,4.23155544,2745.0,2744.2,3.5]
[1646825843830,1.22625722,2744.8,2744.2,1.19075096]
[1646825844026,2.13769722,2744.8,2744.2,0.03225856]
[1646825844227,0.029168,2744.7,2744.2,0.03225856]
[1646825844666,1.852318,2744.7,2744.2,0.03225856]
[1646825845070,0.029168,2744.7,2744.2,0.03225856]
[1646825845273,3.04918722,2744.8,2744.2,0.03225856]
[1646825845972,0.029168,2744.7,2744.3,0.0038474]
[1646825846174,0.029168,2744.4,2744.3,0.03610596]
[1646825846378,0.940848,2744.4,2744.3,0.03610596]
[1646825846573,1.740848,2744.4,2744.3,0.03610596]
[1646825846773,1.88623286,2744.4,2744.3,0.03610596]
[1646825846974,12.98623286,2744.4,2744.3,0.03225856]
[1646825847273,12.98623286,2744.4,2744.3,0.076487]
[1646825847274,2.88623286,2744.4,2744.3,0.076487]
[1646825847474,1.97455286,2744.4,2744.3,0.076487]
[1646825847674,12.07455286,2744.4,2744.3,0.076487]
[1646825848078,13.07455286,2744.4,2744.3,0.076487]
[1646825848522,5.47455286,2744.4,2744.3,0.076487]
[1646825848722,1.97455286,2744.4,2744.3,0.076487]
[1646825849126,0.97455286,2744.4,2744.3,0.076487]
[1646825849624,0.67455286,2744.4,2744.3,0.076487]
[1646825849826,0.5,2744.4,2744.3,0.076487]
[1646825850824,0.5,2744.4,2744.3,0.04392963]
[1646825854177,149.95607037,2744.0,2743.8,0.36527461]
[1646825854377,149.95607037,2744.0,2743.8,0.363]
[1646825854779,149.95607037,2744.0,2743.8,0.663]
[1646825855585,149.95607037,2744.0,2743.8,0.6668478]
[1646825856648,150.45607037,2744.0,2743.8,2.4858301]
[1646825856848,150.45607037,2744.0,2743.8,2.48968078]
[1646825857047,150.45607037,2744.0,2743.8,5.22352078]
[1646825857244,126.26215006,2744.0,2743.8,5.22352078]
[1646825857448,113.17856325,2744.0,2743.9,1.52807199]
[1646825857645,113.17856325,2744.0,2743.9,1.82807199]
[1646825858145,113.17856325,2744.0,2743.9,13.37307199]
[1646825858345,113.17856325,2744.0,2743.9,3.27307199]
[1646825858547,112.67856325,2744.0,2743.9,3.27307199]
[1646825858945,112.67856325,2744.0,2743.9,2.27307199]
[1646825859346,112.57856325,2744.0,2743.9,2.27307199]
[1646825859765,112.57856325,2744.0,2743.9,13.37307199]
[1646825859969,112.57856325,2744.0,2743.9,2.27307199]
[1646825860169,112.57856325,2744.0,2743.9,3.27307199]
[1646825860468,112.57856325,2744.0,2743.9,16.37307199]
[1646825860670,112.57856325,2744.0,2743.9,18.80504255]
[1646825860870,104.23211037,2744.0,2743.9,19.04908822]
[1646825861071,104.23211037,2744.0,2743.9,16.04908822]
[1646825861476,104.23211037,2744.0,2743.9,15.80504255]
[1646825861677,104.23211037,2744.0,2743.9,14.37307199]
[1646825862879,104.73211037,2744.0,2743.9,14.37307199]
[1646825863929,104.73211037,2744.0,2743.9,15.03852484]
[1646825864531,104.73211037,2744.0,2743.9,14.37307199]
[1646825866232,104.73211037,2744.0,2743.9,13.92807199]
[1646825867471,104.73211037,2744.0,2743.9,14.20649551]
[1646825867869,104.73211037,2744.0,2743.9,15.63846607]
[1646825868370,104.73211037,2744.0,2743.9,15.62721192]
[1646825868971,104.73211037,2744.0,2743.9,14.99704255]
[1646825869376,104.73211037,2744.0,2743.9,15.36004255]
[1646825870173,104.73211037,2744.0,2743.9,14.99704255]
[1646825870573,104.73211037,2744.0,2743.9,15.36004255]
[1646825870821,103.13508999,2744.0,2743.9,15.36004255]
[1646825871719,103.13508999,2744.0,2743.9,14.99704255]
[1646825871924,103.13508999,2744.0,2743.9,14.23554389]
[1646825872122,103.13508999,2744.0,2743.9,12.56507199]
[1646825872319,103.13508999,2744.0,2743.9,12.93554389]
[1646825873322,103.13508999,2744.0,2743.9,12.26507199]
[1646825873722,103.13508999,2744.0,2743.9,12.56507199]
[1646825874122,103.13508999,2744.0,2743.9,13.23554389]
[1646825876181,103.13508999,2744.0,2743.9,12.56507199]
[1646825876580,103.13508999,2744.0,2743.9,1.16507199]
[1646825876783,103.16425799,2744.0,2743.9,1.16507199]
[1646825877186,103.13508999,2744.0,2743.9,1.16507199]
[1646825877583,102.63508999,2744.0,2743.9,1.16507199]
[1646825879121,102.66425799,2744.0,2743.9,1.16507199]
[1646825879725,103.16425799,2744.0,2743.9,1.16507199]
[1646825879922,103.13508999,2744.0,2743.9,1.16507199]
[1646825881536,103.13508999,2744.0,2743.9,1.46507199]
[1646825883381,103.13508999,2744.0,2743.9,12.56507199]
[1646825883582,103.13508999,2744.0,2743.9,1.46507199]
[1646825884182,103.13508999,2744.0,2743.9,1.16507199]
[1646825884987,103.13508999,2744.0,2743.9,1.46507199]
[1646825890373,103.13508999,2744.0,2743.9,12.56507199]
[1646825890774,103.13508999,2744.0,2743.9,13.23554389]
[1646825890775,101.53800763,2744.0,2743.9,13.23554389]
[1646825891478,101.53800763,2744.0,2743.9,13.99704255]
[1646825891675,101.53800763,2744.0,2743.9,12.56507199]
[1646825891874,101.53800763,2744.0,2743.9,2.13554389]
[1646825892074,101.53800763,2744.0,2743.9,13.23554389]
[1646825893242,101.53800763,2744.0,2743.9,13.56507199]
[1646825893435,100.53800763,2744.0,2743.9,17.26414255]
[1646825893837,94.51781023,2744.0,2743.9,18.14277716]
[1646825894035,94.51781023,2744.0,2743.9,17.26414255]
[1646825894237,90.48888813,2744.0,2743.9,17.26414255]
[1646825894435,87.82930324,2744.0,2743.9,17.26414255]
[1646825895441,87.82930324,2744.0,2743.9,17.48844414]
[1646825895836,87.82930324,2744.0,2743.9,18.38373768]
[1646825898081,87.82930324,2744.0,2743.9,16.56163768]
[1646825898477,70.06641114,2744.0,2743.9,16.92463768]
[1646825898677,70.06641114,2744.0,2743.9,19.94038414]
[1646825899079,70.06641114,2744.0,2743.9,22.94038414]
[1646825899279,59.13634914,2744.0,2743.9,22.94038414]
[1646825900832,0.029168,2744.9,2744.3,0.363]
[1646825901133,0.029168,2745.1,2744.6,11.1]
[1646825901331,0.36026563,2745.0,2744.8,11.1]
[1646825901532,0.00316059,2745.0,2744.9,12.71007199]
[1646825901733,0.00316059,2745.0,2744.9,13.01007199]
[1646825901934,0.00316059,2745.0,2744.9,14.15921915]
[1646825902131,0.00316059,2745.0,2744.9,13.01007199]
[1646825902332,0.029168,2745.0,2744.9,1.46507199]
[1646825902531,0.38619028,2745.0,2744.9,1.46507199]
[1646825903135,0.85702228,2745.0,2744.9,1.46507199]
[1646825904473,0.88619028,2745.0,2744.9,1.46507199]
[1646825908237,0.85702228,2745.0,2744.9,1.46507199]
[1646825910833,0.85702228,2745.0,2744.9,0.3]
[1646825911037,0.85702228,2745.0,2744.4,1.02662608]
[1646825911038,0.85702228,2745.0,2744.5,1.1375801]
[1646825911230,0.38619028,2744.9,2744.6,1.13758907]
[1646825911431,0.35702228,2744.8,2744.6,1.13758907]
[1646825911630,0.35702228,2744.7,2744.6,1.13758907]
[1646825911830,0.029168,2744.9,2744.6,1.13758907]
[1646825912087,0.35147531,2744.8,2744.6,1.13758907]
[1646825912487,0.38064331,2744.8,2744.6,1.13758907]
[1646825912686,0.35147531,2744.7,2744.6,1.13758907]
[1646825912888,0.85147531,2744.7,2744.6,1.13758907]
[1646825914092,0.5,2744.7,2744.6,1.13758907]
[1646825914292,0.029168,2745.0,2744.7,0.26625931]
[1646825914493,0.029168,2745.0,2744.8,1.58258907]
[1646825914494,0.35514288,2744.9,2744.8,1.58258907]
[1646825914992,0.00316139,2745.0,2744.9,1.20468115]
[1646825915192,0.00316139,2745.0,2744.9,2.78727022]
[1646825915397,0.00316139,2745.0,2744.9,1.58258907]
[1646825915593,0.5,2745.0,2744.9,1.58258907]
[1646825915828,0.5,2745.0,2744.9,1.13758907]
[1646825915829,0.85508109,2745.0,2744.9,1.13758907]
[1646825916629,0.88424909,2745.0,2744.9,1.13758907]
[1646825917630,0.88424909,2745.0,2744.9,1.12978262]
[1646825917831,0.85508109,2745.0,2744.9,1.12978262]
[1646825918032,0.85508109,2745.0,2744.7,0.26625931]
[1646825918033,4.5,2744.9,2744.7,0.26625931]
[1646825918234,4.91127,2744.7,2744.2,0.00227461]
[1646825918435,0.029168,2744.5,2744.3,0.00385852]
[1646825918736,0.029168,2744.4,2744.3,0.00385852]
[1646825919032,0.029168,2744.4,2744.0,2.89536175]
[1646825919231,1.49857174,2744.4,2744.0,2.89536175]
[1646825919481,1.49857174,2744.4,2744.2,0.00385837]
[1646825919482,0.96940374,2744.4,2744.2,0.00385837]
[1646825919884,0.029168,2744.3,2744.2,0.00385837]
[1646825920280,0.029168,2744.3,2744.0,2.39536175]
[1646825920281,0.529168,2744.3,2744.0,2.39536175]
[1646825920481,0.029168,2744.3,2744.0,2.39536175]
[1646825920687,4.46940374,2744.4,2744.1,0.00385848]
[1646825920884,0.029168,2744.2,2744.1,0.00385848]
[1646825921390,0.529168,2744.2,2744.1,0.00385848]
[1646825921585,0.529168,2744.2,2744.0,2.39536175]
[1646825921786,0.529168,2744.2,2744.0,2.39922034]
[1646825921984,0.029168,2744.1,2744.0,2.39922034]
[1646825922785,0.029168,2744.1,2744.0,2.39536175]
[1646825924226,0.029168,2744.1,2744.0,2.69536175]
[1646825925027,0.529168,2744.2,2744.0,2.69536175]
[1646825925428,0.5,2744.2,2744.0,2.69536175]
[1646825925833,0.363,2744.9,2744.0,3.69536175]
[1646825926030,0.029168,2744.8,2744.1,0.445]
[1646825926231,0.029168,2744.9,2744.1,0.445]
[1646825926435,0.5,2744.2,2744.1,0.445]
[1646825926736,0.5,2744.2,2744.1,11.545]
[1646825926974,0.5,2744.2,2744.1,0.445]
[1646825927178,0.5,2744.2,2744.1,1.445]
[1646825927577,0.5,2744.2,2744.0,4.75939162]
[1646825927777,0.45,2744.2,2744.0,4.76230868]
[1646825928179,0.45,2744.2,2744.0,5.26230868]
[1646825928579,0.940528,2744.4,2744.0,4.75939162]
[1646825928979,1.240528,2744.4,2744.0,4.76230873]
[1646825929182,1.21136,2744.4,2744.0,4.76230873]
[1646825929782,0.3,2744.4,2744.0,4.75939162]
[1646825929982,0.4496,2744.1,2744.0,4.75939162]
[1646825932041,0.91124,2744.6,2744.0,4.75939162]
[1646825932239,3.3795633,2745.1,2744.3,0.9109889]
[1646825932240,0.029168,2745.0,2744.3,0.9109889]
[1646825932436,0.5626313,2745.1,2744.4,0.6545369]
[1646825932636,0.5626313,2745.1,2744.5,11.1]
[1646825932637,0.5334633,2745.1,2744.5,11.1]
[1646825932837,0.5334633,2745.1,2744.6,12.045]
[1646825933038,0.5334633,2745.1,2744.7,1.03253938]
[1646825933236,0.5334633,2745.1,2744.8,0.445]
[1646825933437,0.029168,2745.4,2744.8,0.445]
[1646825933837,0.00095269,2745.0,2744.8,0.445]
[1646825934039,0.03012069,2745.0,2744.8,0.445]
[1646825934475,0.03012069,2745.0,2744.7,0.3]
[1646825934777,0.029168,2745.0,2744.4,0.9545369]
[1646825934975,0.00095269,2745.0,2744.4,0.745]
[1646825935175,0.029168,2744.7,2744.4,0.3]
[1646825935375,0.029168,2744.8,2744.2,1.245]
[1646825935575,0.00095269,2745.0,2744.2,1.245]
[1646825935576,0.00095269,2745.0,2744.2,0.745]
[1646825935778,0.029168,2744.7,2744.2,0.445]
[1646825935980,0.5,2744.3,2744.2,1.34648325]
[1646825936179,0.00316562,2745.0,2744.6,0.26913117]
[1646825936978,0.9112,2744.8,2744.6,0.26913117]
[1646825937579,1.2112,2744.8,2744.6,0.26913117]
[1646825937778,0.9112,2744.8,2744.6,0.26913117]
[1646825937978,1.2112,2744.8,2744.6,0.26913117]
[1646825938235,1.2112,2744.8,2744.7,1.12434798]
[1646825938428,1.7750978,2744.8,2744.7,1.12434798]
[1646825938625,2.0750978,2744.8,2744.7,1.12434798]
[1646825941732,1.5750978,2744.8,2744.7,1.12434798]
[1646825941987,1.5750978,2744.8,2744.0,2.39536175]
[1646825941988,6.91133,2744.6,2744.0,2.39536175]
[1646825942284,6.91133,2744.6,2744.3,0.00412558]
[1646825942285,0.91133,2744.6,2744.3,0.00412558]
[1646825942487,1.21133,2744.6,2744.3,0.00412558]
[1646825943181,0.88688436,2744.5,2744.0,2.69536175]
[1646825944493,0.88688436,2744.5,2744.1,0.00400186]
[1646825944692,0.3,2744.6,2744.1,0.00400186]
[1646825945293,3.68528131,2744.7,2744.1,0.00400186]
[1646825945594,0.1821,2744.7,2744.0,2.69536175]
[1646825945826,0.1821,2744.7,2744.2,0.00400182]
[1646825945827,0.18528143,2744.7,2744.2,0.00400182]
[1646825946227,1.20311306,2744.4,2744.2,0.00400182]
[1646825946427,0.18528143,2744.7,2744.0,2.64686357]
[1646825946630,0.3,2744.5,2744.0,2.64686357]
[1646825946828,1.21134,2744.8,2744.0,2.64686357]
[1646825947332,1.87201298,2744.8,2744.0,2.64686357]
[1646825947529,2.93354668,2744.8,2744.0,2.64686357]
[1646825947737,2.93354668,2744.8,2744.3,1.04027738]
[1646825947738,2.2728737,2744.8,2744.3,1.04027738]
[1646825948331,2.2728737,2744.8,2744.3,0.3]
[1646825948733,2.2728737,2744.8,2744.2,0.3]
[1646825948934,0.1821,2744.7,2744.2,0.3]
[1646825949134,0.1821,2744.7,2744.1,0.3]
[1646825949334,0.00319162,2744.6,2744.1,0.30385539]
[1646825949779,0.00319162,2744.6,2744.1,0.00385539]
[1646825950384,0.1821,2744.7,2744.0,2.69536175]
[1646825950581,0.00260219,2744.5,2744.1,0.00367848]
[1646825951584,0.1821,2744.7,2744.0,2.69536175]
[1646825951783,0.00260214,2744.5,2744.1,0.00368232]
[1646825952786,2.4549737,2744.8,2744.0,2.69536175]
[1646825952991,0.00260214,2744.5,2744.1,0.00368232]
[1646825953926,2.4549737,2744.8,2744.0,2.69536175]
[1646825954225,0.00260214,2744.5,2744.1,0.00368232]
[1646825955225,0.00260214,2744.5,2744.0,2.69536175]
[1646825955226,2.2728737,2744.8,2744.0,2.69536175]
[1646825955425,0.00268746,2744.5,2744.1,0.00371364]
[1646825956329,2.2728737,2744.8,2744.0,2.69536175]
[1646825956530,0.0008091,2744.5,2744.0,2.69536175]
[1646825957390,0.91134,2744.6,2744.0,2.69536175]
[1646825957588,1.21134,2744.6,2744.0,2.69536175]
[1646825957788,0.00080908,2744.5,2744.0,2.69536175]
[1646825958196,6.0,2744.4,2743.7,0.67380223]
[1646825958391,6.0,2744.4,2743.6,0.09978864]
[1646825958392,3.5,2744.3,2743.6,0.09978864]
[1646825958989,7.57442,2744.4,2743.9,0.00407474]
[1646825959190,7.21142,2744.4,2743.9,0.00168254]
[1646825959390,8.21142,2744.4,2743.9,0.00168254]
[1646825959691,7.21142,2744.4,2743.9,0.00168254]
[1646825959889,7.57442,2744.4,2743.6,0.09978864]
[1646825960089,1.04204459,2743.8,2743.6,0.09978864]
[1646825962028,1.04204459,2743.8,2743.7,1.05379169]
[1646825962228,1.47591714,2743.8,2743.7,1.05379169]
[1646825962428,1.47591714,2743.8,2743.7,1.35379169]
[1646825962627,0.43387255,2743.8,2743.7,1.35379169]
[1646825963231,0.43387255,2743.8,2743.7,2.44179169]
[1646825963831,0.42820868,2743.8,2743.7,2.44179169]
[1646825964031,1.2115,2744.1,2743.7,2.44179169]
[1646825964232,1.5649,2744.3,2743.9,1.088]
[1646825964233,0.42821477,2744.0,2743.9,1.088]
[1646825964488,0.3,2744.1,2744.0,0.65978523]
[1646825964689,0.42819081,2744.1,2744.0,0.65978523]
[1646825964887,0.42819081,2744.1,2744.0,2.02665917]
[1646825969925,0.42819081,2744.1,2744.0,0.95978523]
[1646825970125,0.42819081,2744.1,2744.0,2.0301792]
[1646825971331,0.42819081,2744.1,2744.0,0.95978523]
[1646825971630,0.42819081,2744.1,2744.0,2.03006032]
[1646825972885,0.42819081,2744.1,2744.0,0.95978523]
[1646825977433,0.37819081,2744.1,2744.0,0.95978523]
[1646825978633,0.37819081,2744.1,2744.0,0.95586923]
[1646825979233,0.37819081,2744.1,2743.9,3.30783872]
[1646825979234,2.0,2744.0,2743.9,3.30783872]
[1646825981087,2.0,2744.0,2743.9,3.60783872]
[1646825981688,2.0,2744.0,2743.9,3.30783872]
[1646825982488,1.21155,2744.1,2743.9,3.60783872]
[1646825990585,1.21155,2744.1,2743.9,1.58574005]
[1646825990856,1.87222298,2744.1,2743.9,1.58574005]
[1646825991045,0.66067298,2744.0,2743.9,1.58574005]
[1646825993344,1.87222298,2744.1,2743.9,1.58574005]
[1646825994982,0.66067298,2744.0,2743.9,1.58574005]
[1646825995182,4.16067298,2744.0,2743.8,6.209e-05]
[1646825995384,1.21155,2744.1,2743.8,6.209e-05]
[1646825995385,4.41175,2743.9,2743.8,6.209e-05]
[1646825995786,5.41175,2743.9,2743.8,6.209e-05]
[1646825995988,6.32353,2743.9,2743.6,0.09978864]
[1646825996185,0.66582432,2743.8,2743.6,0.09978864]
[1646825996386,3.5,2743.7,2743.6,0.09978864]
[1646825996587,0.66582432,2743.8,2743.6,0.09978864]
[1646825996988,3.5,2743.7,2743.6,0.09978864]
[1646825997388,4.87000855,2743.7,2743.6,0.09978864]
[1646825997586,4.87000855,2743.7,2743.6,0.10269438]
[1646825998087,1.37000855,2743.7,2743.6,0.10269438]
[1646825998334,3.87000855,2743.7,2743.6,0.09978864]
[1646825998740,0.37000855,2743.7,2743.6,0.09978864]
[1646825999140,2.5,2743.6,2743.5,0.02504229]
[1646825999340,2.87000855,2743.6,2743.5,0.04739057]
[1646825999541,2.87000855,2743.6,2743.5,0.04448478]
[1646826003197,3.87000855,2743.6,2743.5,0.04448478]
[1646826003399,2.87000855,2743.6,2743.5,0.04448478]
[1646826003598,3.87000855,2743.6,2743.5,0.04448478]
[1646826004600,3.87000855,2743.6,2743.5,0.02234828]
[1646826004801,3.87000855,2743.6,2743.5,0.04448478]
[1646826005003,3.5,2743.6,2743.5,0.04448478]
[1646826005199,7.0,2743.6,2743.5,0.04448478]
[1646826005400,7.3450917,2743.6,2743.5,0.04448478]
[1646826005836,3.8450917,2743.6,2743.5,0.04448478]
[1646826006435,7.3450917,2743.6,2743.5,0.04448478]
[1646826006636,3.8450917,2743.6,2743.5,0.04448478]
[1646826007641,6.0,2743.5,2743.4,0.04664655]
[1646826007837,7.2569417,2743.5,2743.4,0.04664655]
[1646826008038,6.0,2743.4,2743.3,0.09923342]
[1646826008238,9.8450917,2743.4,2743.3,0.0749201]
[1646826008440,6.0,2743.3,2743.1,0.0365817]
[1646826008647,4.8450917,2743.4,2742.9,0.0202936]
[1646826008648,6.0,2743.1,2742.9,0.03676879]
[1646826008840,3.8450917,2743.0,2742.9,0.03676879]
[1646826009236,4.8450917,2743.0,2742.9,0.03676879]
[1646826009680,6.0,2742.9,2742.7,0.0049935]
[1646826009881,6.3450917,2742.9,2742.8,0.46205934]
[1646826010080,6.3450917,2742.9,2742.8,0.45035597]
[1646826010679,6.3450917,2742.9,2742.8,0.09765934]
[1646826012287,0.3450917,2742.9,2742.8,0.09765934]
[1646826013750,1.1983,2743.3,2742.8,1.25441187]
[1646826013949,0.00324522,2743.5,2742.8,1.25441187]
[1646826013950,0.32955902,2743.2,2742.9,1.15675253]
[1646826014150,0.00324522,2743.5,2743.1,1.20141249]
[1646826014449,0.00324522,2743.5,2742.8,0.75464734]
[1646826014650,0.33268234,2743.5,2742.9,5.01981905]
[1646826014851,0.33268234,2743.5,2742.9,0.07942464]
[1646826015052,0.33268234,2743.5,2743.0,1.15682406]
[1646826015252,0.32943712,2743.5,2742.9,0.07942464]
[1646826015456,0.33268275,2743.5,2743.0,0.96087458]
[1646826015658,0.33268275,2743.5,2743.1,1.15673195]
[1646826015853,0.33268275,2743.5,2743.1,1.19556939]
[1646826016052,0.33268275,2743.5,2743.1,0.03883744]
[1646826016254,0.33268275,2743.5,2743.1,3.90183744]
[1646826016453,0.32943712,2743.5,2743.2,1.15670449]
[1646826016653,0.33268287,2743.5,2743.2,1.45670449]
[1646826016855,0.33268287,2743.5,2743.2,0.33883744]
[1646826017584,0.32943712,2743.5,2743.2,0.33883744]
[1646826017786,0.33268291,2743.5,2743.2,0.33883744]
[1646826018987,0.32943712,2743.5,2743.2,0.03883744]
[1646826019186,0.32943712,2743.5,2743.2,0.02149418]
[1646826019187,0.33268291,2743.5,2743.2,0.02149418]
[1646826019387,0.33268291,2743.5,2743.2,9.418e-05]
[1646826019587,0.66582432,2743.4,2743.2,9.418e-05]
[1646826019788,0.99526144,2743.3,2743.2,9.418e-05]
[1646826019989,4.11973003,2743.3,2743.2,9.418e-05]
[1646826020288,4.11973003,2743.3,2742.9,6.085e-05]
[1646826020289,6.0,2743.2,2742.9,6.085e-05]
[1646826020494,1.1158462,2743.0,2742.9,6.085e-05]
[1646826020751,1.1158462,2743.0,2742.6,0.019974]
[1646826020752,6.0,2742.9,2742.6,0.019974]
[1646826020945,0.32943712,2742.8,2742.6,0.019974]
[1646826021146,0.32943712,2742.7,2742.4,0.01008906]
[1646826021349,0.91212,2742.5,2742.4,0.06012612]
[1646826021549,1.24155712,2742.5,2742.4,0.06012612]
[1646826023156,4.74155712,2742.5,2742.4,0.06012612]
[1646826023551,1.24155712,2742.5,2742.4,0.06012612]
[1646826027089,0.1822,2742.7,2742.4,0.06012612]
[1646826027290,0.1822,2743.1,2742.4,0.06012612]
[1646826027488,0.31061868,2743.0,2742.4,0.06012612]
[1646826027689,0.31061868,2743.0,2742.4,0.56012612]
[1646826027889,0.31061868,2743.0,2742.4,0.06012612]
[1646826028095,0.31061868,2743.0,2742.5,1.17721508]
[1646826028337,0.31061868,2742.9,2742.5,1.17721508]
[1646826028530,0.90479818,2743.1,2742.5,1.17721508]
[1646826028731,0.30696126,2743.0,2742.6,0.00399539]
[1646826028933,0.18545976,2743.3,2742.6,0.04394339]
[1646826029133,0.18545976,2743.3,2742.7,1.63157035]
[1646826029134,0.29775447,2743.2,2742.7,1.63157035]
[1646826029338,0.00325976,2743.3,2742.8,1.18657035]
[1646826029534,0.00325976,2743.3,2742.9,0.445]
[1646826029734,0.29774362,2743.6,2742.9,0.745]
[1646826029933,1.19770023,2743.6,2742.9,0.745]
[1646826030134,0.29774362,2743.5,2742.9,0.745]
[1646826031139,0.29774362,2743.4,2743.0,0.91159]
[1646826031338,0.29774362,2743.3,2743.0,0.91159]
[1646826031637,0.029168,2743.7,2743.0,0.91159]
[1646826031638,0.29774362,2743.2,2743.0,0.91159]
[1646826031839,0.029168,2743.7,2743.0,0.91159]
[1646826032083,0.29788621,2743.6,2743.0,0.91159]
[1646826032287,0.00326553,2743.3,2743.0,0.91159]
[1646826032782,0.00326553,2743.3,2742.9,0.745]
[1646826033183,0.29788621,2743.6,2743.0,1.1875899]
[1646826033382,0.00326553,2743.3,2743.0,1.1875899]
[1646826034386,0.29788621,2743.6,2743.0,1.1875899]
[1646826034794,0.00326558,2743.3,2743.0,1.1875899]
[1646826035595,0.9117,2743.5,2743.0,1.1875899]
[1646826035836,0.00326558,2743.3,2743.0,1.1875899]
[1646826036837,0.29788621,2743.4,2743.0,1.1875899]
[1646826037037,0.00326558,2743.3,2743.0,1.1875899]
[1646826037238,0.00326558,2743.3,2743.1,3.74237345]
[1646826037441,0.30115179,2743.3,2743.2,1.18893417]
[1646826037640,0.00326558,2743.3,2743.2,1.18893417]
[1646826038039,0.29788621,2743.6,2743.2,1.18893417]
[1646826038239,0.00326558,2743.4,2743.2,2.31954366]
[1646826038440,0.00326558,2743.4,2743.2,1.13060949]
[1646826039041,0.00326558,2743.4,2743.1,0.745]
[1646826039241,0.29788621,2743.6,2743.1,0.745]
[1646826039498,0.00326558,2743.4,2743.2,1.19472088]
[1646826039685,0.17392294,2743.1,2742.8,0.00386713]
[1646826039887,0.28729804,2743.0,2742.8,1.20442144]
[1646826040087,0.17392294,2743.1,2742.8,1.20442144]
[1646826040487,0.17392294,2743.1,2742.8,1.20055431]
[1646826040488,0.28732592,2743.0,2742.8,1.20055431]
[1646826040685,0.28732592,2743.0,2742.8,1.2044213]
[1646826041091,0.28732592,2743.0,2742.8,1.5044213]
[1646826041290,0.28732592,2743.0,2742.9,1.20055431]
[1646826041494,0.28732592,2743.0,2742.8,1.2044213]
[1646826041690,0.28732592,2743.0,2742.8,1.20055431]
[1646826041891,0.28732592,2743.0,2742.8,1.2044213]
[1646826042794,0.28732592,2743.0,2742.8,1.20055431]
[1646826042993,0.28732592,2743.0,2742.8,1.204421]